bitfinex/quotes_SOLUSD_20240808
["timestamp","ask_amount","ask_price","bid_price","bid_amount"]
[1723076017264,0.67,144.76,144.74,0.8243136]
[1723076017437,45.0,144.78,144.74,0.8243136]
[1723076017645,45.0,144.78,144.74,0.3243136]
[1723076018341,7.4046,144.83,144.74,0.3243136]
[1723076018549,16.5507,144.85,144.74,0.3243136]
[1723076018758,7.10921505,144.82,144.74,6.5215136]
[1723076019060,6.4316,144.87,144.75,20.0]
[1723076019268,7.10972841,144.84,144.75,20.0]
[1723076019466,6.4316,144.87,144.74,0.3243136]
[1723076019664,0.5,144.86,144.74,0.3243136]
[1723076019963,6.9037,144.85,144.74,0.3243136]
[1723076020170,20.0,144.84,144.74,0.3243136]
[1723076020349,0.17,144.83,144.74,0.3243136]
[1723076020540,7.11134836,144.85,144.74,0.3243136]
[1723076020541,0.17,144.84,144.74,0.3243136]
[1723076021438,6.906,144.81,144.74,0.3243136]
[1723076021660,0.17,144.8,144.74,0.3243136]
[1723076022371,20.17,144.8,144.74,0.3243136]
[1723076022538,45.67,144.79,144.74,0.3243136]
[1723076022737,7.407,144.78,144.74,0.3243136]
[1723076022938,52.2475,144.77,144.74,0.3243136]
[1723076023167,0.5,144.76,144.74,0.3243136]
[1723076023348,7.2484,144.75,144.74,1e-08]
[1723076023544,52.2484,144.75,144.74,1e-08]
[1723076023747,6.9127,144.66,144.62,6.4329]
[1723076023956,6.9118,144.68,144.6,0.8243136]
[1723076024150,45.0,144.67,144.6,0.8243136]
[1723076024347,51.9126,144.67,144.6,0.8243136]
[1723076024553,0.17,144.66,144.6,0.8243136]
[1723076025076,7.0828,144.66,144.6,0.8243136]
[1723076025275,45.0,144.65,144.6,0.8243136]
[1723076025450,0.17,144.64,144.6,0.8243136]
[1723076025647,0.67,144.64,144.6,0.8243136]
[1723076025955,0.17,144.63,144.6,0.8243136]
[1723076026161,6.9151,144.61,144.6,0.8243136]
[1723076026361,52.7551,144.61,144.6,0.8243136]
[1723076027567,0.5,144.66,144.6,0.8243136]
[1723076027805,0.17,144.65,144.6,0.8243136]
[1723076027958,20.67,144.66,144.6,0.8243136]
[1723076028643,0.67,144.66,144.6,0.8243136]
[1723076029371,6.9142,144.63,144.6,0.8243136]
[1723076029671,0.67,144.66,144.6,0.8243136]
[1723076029672,6.9151,144.61,144.6,0.8243136]
[1723076029845,72.2551,144.61,144.6,0.8243136]
[1723076030446,72.2551,144.61,144.6,0.3243136]
[1723076030646,79.37266213,144.61,144.6,0.3243136]
[1723076031859,99.95266213,144.61,144.6,0.3243136]
[1723076032184,99.95266213,144.61,144.47,16.1157]
[1723076032185,6.9173,144.57,144.47,16.1157]
[1723076032480,45.34,144.56,144.47,16.1157]
[1723076032668,52.2575,144.56,144.47,16.1157]
[1723076032871,45.34,144.56,144.45,0.8243136]
[1723076033977,45.34,144.56,144.43,6.312]
[1723076034149,45.34,144.56,144.45,0.244372]
[1723076035259,0.17,144.56,144.46,0.17]
[1723076035576,0.17,144.56,144.45,0.244372]
[1723076035577,7.0877,144.56,144.45,0.244372]
[1723076035777,72.6681,144.55,144.45,0.244372]
[1723076036079,0.17,144.54,144.45,0.244372]
[1723076036452,6.0869,144.6,144.45,0.244372]
[1723076036659,47.4962,144.59,144.45,0.244372]
[1723076036981,26.9162,144.59,144.45,0.244372]
[1723076037276,6.0869,144.6,144.45,0.244372]
[1723076037480,20.0,144.59,144.45,1.62831999]
[1723076037800,6.9172,144.57,144.45,0.244372]
[1723076037983,45.17,144.56,144.45,0.244372]
[1723076038662,20.58,144.63,144.46,1.3837605]
[1723076039076,29.41856213,144.61,144.47,0.17]
[1723076039283,6.9156,144.6,144.47,1.55356895]
[1723076039454,20.58,144.6,144.47,1.38356895]
[1723076039655,20.0,144.59,144.45,0.244372]
[1723076039862,20.58,144.58,144.45,0.244372]
[1723076040177,6.918,144.55,144.45,0.244372]
[1723076040380,6.9174,144.57,144.45,0.244372]
[1723076040765,52.0876,144.56,144.45,0.244372]
[1723076041081,6.92,144.51,144.45,0.244372]
[1723076041283,51.9204,144.5,144.45,0.244372]
[1723076041484,6.9204,144.5,144.45,0.244372]
[1723076041692,45.0,144.49,144.45,0.244372]
[1723076041859,89.2076,144.56,144.45,0.244372]
[1723076042181,40.58,144.55,144.45,0.244372]
[1723076042384,65.92,144.54,144.45,0.244372]
[1723076042584,6.9204,144.5,144.45,0.244372]
[1723076042815,7.09,144.51,144.42,11.744372]
[1723076042983,45.0,144.5,144.42,11.744372]
[1723076043585,51.9205,144.5,144.42,11.744372]
[1723076043772,7.0909,144.49,144.42,11.744372]
[1723076043978,51.9204,144.5,144.42,11.744372]
[1723076044173,45.0,144.5,144.42,11.744372]
[1723076044375,40.58,144.55,144.42,11.744372]
[1723076044565,61.5513,144.59,144.42,11.744372]
[1723076044773,6.4295,144.6,144.43,20.0]
[1723076045086,23.7196,144.6,144.45,6.0006]
[1723076045296,14.03218456,144.57,144.46,20.0]
[1723076045476,7.11508456,144.57,144.46,20.0]
[1723076045677,6.9175,144.57,144.46,20.0]
[1723076045890,17.2923,144.58,144.45,6.0006]
[1723076046091,7.11468892,144.56,144.45,6.0006]
[1723076046399,6.9206,144.5,144.45,6.0006]
[1723076046576,45.0,144.49,144.45,6.0006]
[1723076046775,45.0,144.49,144.42,6.0]
[1723076047283,0.17,144.5,144.42,6.0]
[1723076047467,6.9204,144.51,144.42,6.0]
[1723076047802,6.9209,144.49,144.42,6.0]
[1723076048477,52.0914,144.48,144.42,6.0]
[1723076048678,7.0914,144.48,144.42,6.0]
[1723076048880,45.0,144.47,144.42,6.0]
[1723076049598,51.922,144.47,144.42,6.0]
[1723076049777,45.0,144.47,144.42,6.0]
[1723076050096,20.58,144.44,144.42,6.0]
[1723076050280,0.34,144.46,144.42,6.0]
[1723076050687,6.923,144.45,144.42,6.0]
[1723076050891,52.2633,144.44,144.42,6.0]
[1723076051192,7.2633,144.44,144.42,6.0]
[1723076051381,45.0,144.43,144.42,6.0]
[1723076051583,45.17,144.43,144.42,6.0]
[1723076051967,7.11166868,144.47,144.42,6.0]
[1723076052502,20.81,144.48,144.42,6.0]
[1723076053077,6.9237,144.44,144.42,6.0]
[1723076053393,6.9237,144.43,144.42,6.0]
[1723076053790,52.0937,144.43,144.42,6.0]
[1723076054302,73.0737,144.43,144.42,6.0]
[1723076054598,45.34,144.43,144.42,6.0]
[1723076055193,45.0,144.43,144.42,6.0]
[1723076055499,45.17,144.43,144.42,6.0]
[1723076055692,6.9228,144.45,144.42,6.0]
[1723076055892,45.0,144.44,144.42,6.0]
[1723076056673,6.9235,144.44,144.42,6.0]
[1723076056873,45.0,144.43,144.42,6.0]
[1723076057484,45.17,144.43,144.42,6.0]
[1723076057833,51.9237,144.43,144.42,6.0]
[1723076058001,73.0737,144.43,144.42,6.0]
[1723076059287,93.0737,144.43,144.42,3.86380188]
[1723076060314,93.0737,144.43,144.32,6.5873]
[1723076060315,27.7352,144.4,144.27,21.6579]
[1723076060490,15.658,144.36,144.24,6.5873]
[1723076060821,65.17,144.35,144.24,1.38579128]
[1723076061111,16.36,144.4,144.24,1.38579128]
[1723076061284,6.9267,144.37,144.24,1.38579128]
[1723076061489,6.9279,144.35,144.24,1.38579128]
[1723076061701,0.17,144.36,144.24,1.38579128]
[1723076061899,20.0,144.38,144.24,1.38579128]
[1723076062207,45.17,144.39,144.24,1.38579128]
[1723076062208,45.0,144.37,144.25,36.33]
[1723076062391,45.0,144.37,144.26,1.38559915]
[1723076062696,7.0957,144.39,144.24,1.38589397]
[1723076062896,6.9247,144.41,144.27,36.33]
[1723076063124,6.9247,144.41,144.28,1.38550974]
[1723076063305,7.11479829,144.42,144.28,20.0]
[1723076063693,7.11479829,144.42,144.36,36.33]
[1723076063998,6.9198,144.52,144.38,21.4616]
[1723076064212,6.1684,144.55,144.39,20.0]
[1723076064416,23.4645,144.55,144.39,20.0]
[1723076064736,6.9209,144.49,144.4,0.17]
[1723076065216,6.9209,144.49,144.39,20.0]
[1723076065419,6.9214,144.48,144.39,20.0]
[1723076065598,6.9217,144.48,144.38,21.4616]
[1723076065792,6.922,144.47,144.38,21.4616]
[1723076066001,7.10788719,144.5,144.38,21.4616]
[1723076066210,45.17,144.49,144.38,21.4616]
[1723076066396,27.91788719,144.5,144.38,21.4616]
[1723076066397,7.10788719,144.5,144.38,21.4616]
[1723076066611,6.9195,144.52,144.39,0.34]
[1723076066800,6.9199,144.51,144.39,20.34]
[1723076067110,6.9207,144.5,144.39,20.34]
[1723076067851,6.92,144.51,144.39,20.34]
[1723076067991,7.10686029,144.52,144.39,20.17]
[1723076068198,7.10686029,144.52,144.39,20.0]
[1723076068395,7.10686029,144.52,144.4,1.44879606]
[1723076068634,7.10686029,144.52,144.41,1.28004439]
[1723076068795,7.10686029,144.52,144.42,0.17]
[1723076069313,6.92,144.51,144.42,0.17]
[1723076069511,6.9204,144.5,144.39,20.0]
[1723076069718,6.9204,144.5,144.4,0.17]
[1723076069913,7.10686029,144.52,144.4,0.17]
[1723076070229,14.02626029,144.52,144.4,0.17]
[1723076070519,7.10686029,144.52,144.4,44.69]
[1723076070715,7.10686029,144.52,144.42,15.5967]
[1723076070925,17.2904,144.59,144.42,15.5967]
[1723076070926,20.81,144.56,144.42,15.5967]
[1723076071220,6.9227,144.46,144.42,15.5967]
[1723076071804,6.9228,144.45,144.42,15.5967]
[1723076072119,6.9223,144.46,144.38,6.2183]
[1723076072423,51.923,144.45,144.38,6.2183]
[1723076072629,45.17,144.45,144.38,6.2183]
[1723076072798,14.0308861,144.47,144.38,6.2183]
[1723076073004,45.0,144.46,144.38,6.2183]
[1723076073323,7.1086861,144.47,144.38,6.2183]
[1723076073702,6.92,144.51,144.38,6.2183]
[1723076073898,7.10822451,144.52,144.39,21.21269811]
[1723076074220,6.9185,144.54,144.4,1.38261412]
[1723076074406,6.9191,144.53,144.41,0.17]
[1723076074599,6.9213,144.48,144.4,0.17]
[1723076074906,27.91679103,144.53,144.39,20.0]
[1723076075099,6.9223,144.46,144.38,6.2183]
[1723076075299,27.91679103,144.53,144.38,6.2183]
[1723076075607,40.81,144.52,144.38,6.2183]
[1723076075802,6.9209,144.49,144.38,6.2183]
[1723076075995,66.15,144.51,144.38,6.2183]
[1723076076397,6.9228,144.45,144.38,6.2183]
[1723076076597,7.10679103,144.53,144.38,6.2183]
[1723076076804,7.10679103,144.53,144.39,20.0]
[1723076077130,6.9209,144.49,144.39,20.0]
[1723076077311,7.10679103,144.53,144.39,20.0]
[1723076077643,20.81,144.52,144.39,20.0]
[1723076077932,0.17,144.51,144.38,6.2183]
[1723076078118,20.17,144.51,144.38,6.2183]
[1723076078320,0.17,144.51,144.38,6.2183]
[1723076078505,6.9209,144.49,144.38,6.2183]
[1723076078705,0.17,144.51,144.38,6.2183]
[1723076078933,45.34,144.51,144.38,6.2183]
[1723076079239,45.0,144.51,144.38,6.2183]
[1723076079527,7.10679103,144.53,144.38,6.2183]
[1723076079734,20.81,144.52,144.38,6.2183]
[1723076079914,20.81,144.5,144.38,6.2183]
[1723076080730,86.15,144.49,144.38,6.2183]
[1723076081105,6.9233,144.44,144.38,6.2183]
[1723076081339,103.453,144.49,144.38,6.2183]
[1723076081637,20.81,144.46,144.38,6.2183]
[1723076081802,45.34,144.45,144.34,6.398]
[1723076082001,45.34,144.45,144.34,7.78285573]
[1723076082229,6.9236,144.44,144.34,6.398]
[1723076082432,45.34,144.45,144.34,6.398]
[1723076082433,6.9243,144.42,144.34,6.398]
[1723076082636,45.0,144.43,144.34,6.398]
[1723076082637,6.9238,144.43,144.34,6.398]
[1723076083222,66.15,144.45,144.34,6.398]
[1723076083427,51.9243,144.42,144.34,6.398]
[1723076083637,6.9243,144.42,144.34,6.398]
[1723076084312,6.9238,144.43,144.34,6.398]
[1723076084722,45.17,144.45,144.34,6.398]
[1723076084929,6.9248,144.41,144.34,6.398]
[1723076085136,6.9243,144.42,144.34,6.398]
[1723076085336,6.9247,144.41,144.34,6.398]
[1723076085736,14.03444271,144.43,144.34,6.398]
[1723076086006,7.11034271,144.43,144.34,6.398]
[1723076086222,41.197,144.55,144.34,6.398]
[1723076086542,7.10342832,144.47,144.36,22.3173]
[1723076086714,9.33902164,144.55,144.37,46.72456418]
[1723076086912,6.9203,144.51,144.37,1.72456418]
[1723076087128,6.9203,144.51,144.37,46.72456418]
[1723076087322,6.9204,144.5,144.37,46.72456418]
[1723076087533,6.9204,144.5,144.37,1.72456418]
[1723076087709,7.10299714,144.51,144.37,37.99456418]
[1723076087916,7.10299714,144.51,144.38,22.5571]
[1723076088235,14.02289714,144.51,144.39,0.17]
[1723076088410,14.02289714,144.51,144.39,0.34]
[1723076088612,6.9204,144.5,144.39,0.17]
[1723076089237,14.02299714,144.51,144.39,0.17]
[1723076089824,7.10299714,144.51,144.39,0.17]
[1723076090138,7.10299714,144.51,144.39,45.34]
[1723076091607,7.10299714,144.51,144.4,6.3227]
[1723076091812,6.9203,144.51,144.41,0.17]
[1723076092008,6.9195,144.52,144.41,0.17]
[1723076092214,7.09693489,144.53,144.41,0.17]
[1723076092416,7.09693489,144.53,144.41,0.34]
[1723076092712,7.09693489,144.53,144.44,16.6256]
[1723076092916,17.2903,144.59,144.45,0.69801311]
[1723076093144,6.9183,144.55,144.45,0.17]
[1723076093316,6.9185,144.54,144.44,17.15377537]
[1723076093515,6.9186,144.54,144.44,17.15377536]
[1723076093747,7.09530221,144.58,144.44,17.15377536]
[1723076093913,6.9185,144.54,144.44,17.15377536]
[1723076094231,45.17,144.57,144.45,0.52880342]
[1723076094232,6.9181,144.55,144.45,0.52880342]
[1723076094442,6.9185,144.54,144.44,16.6256]
[1723076095642,6.9181,144.55,144.45,1.38359927]
[1723076095935,45.17,144.57,144.46,1.38409464]
[1723076096237,6.9185,144.54,144.46,1.38409464]
[1723076096540,6.9185,144.54,144.44,16.6256]
[1723076096714,65.98,144.57,144.44,16.6256]
[1723076096914,65.98,144.57,144.44,18.00924867]
[1723076096915,6.9197,144.52,144.44,18.00924867]
[1723076097314,6.9197,144.52,144.44,16.6256]
[1723076097519,6.9199,144.51,144.44,16.6256]
[1723076097720,55.4014,144.55,144.44,16.6256]
[1723076097941,38.1076,144.53,144.44,16.6256]
[1723076098120,0.34,144.52,144.44,16.6256]
[1723076098440,6.9211,144.49,144.44,16.6256]
[1723076099752,45.34,144.52,144.44,16.6256]
[1723076099753,45.0,144.52,144.44,16.6256]
[1723076100251,6.9199,144.51,144.44,16.6256]
[1723076100425,6.9179,144.56,144.44,16.6256]
[1723076100626,6.9179,144.56,144.45,0.17]
[1723076100819,6.918,144.55,144.45,1.55393791]
[1723076101042,7.09530221,144.58,144.45,0.17]
[1723076101043,6.9176,144.56,144.45,0.17]
[1723076101236,6.9175,144.56,144.45,0.17]
[1723076101758,6.918,144.55,144.45,0.17]
[1723076102128,10.84464024,144.6,144.47,6.4165]
[1723076102326,17.2875,144.62,144.49,15.5427]
[1723076102536,6.9183,144.55,144.49,15.5427]
[1723076102829,7.09545303,144.61,144.49,15.5427]
[1723076103050,6.9161,144.59,144.49,15.5427]
[1723076103229,7.09545303,144.61,144.49,15.5427]
[1723076103424,38.2698,144.6,144.49,15.5427]
[1723076103752,17.2928,144.57,144.47,6.4165]
[1723076103944,45.0,144.56,144.47,6.4165]
[1723076104147,6.9179,144.56,144.47,6.4165]
[1723076105252,6.9184,144.55,144.47,6.4165]
[1723076105435,45.0,144.59,144.48,1.3834263]
[1723076105837,6.9171,144.57,144.48,1.3834263]
[1723076106354,6.9176,144.56,144.48,1.3834263]
[1723076106560,6.9181,144.55,144.47,6.4165]
[1723076106742,45.0,144.54,144.47,6.4165]
[1723076106940,0.17,144.53,144.47,6.4165]
[1723076107429,6.9199,144.51,144.47,6.4165]
[1723076109056,6.9195,144.52,144.47,6.4165]
[1723076109546,6.919,144.53,144.47,6.4165]
[1723076109747,427.2019,144.58,144.47,6.4165]
[1723076109932,20.0,144.57,144.47,6.4165]
[1723076110131,6.919,144.53,144.47,6.4165]
[1723076110429,20.0,144.57,144.47,6.4165]
[1723076110838,6.9194,144.52,144.47,6.4165]
[1723076111857,20.0,144.57,144.45,16.604]
[1723076111858,6.9218,144.48,144.45,16.604]
[1723076112065,6.9218,144.47,144.42,6.1769]
[1723076112358,6.9229,144.45,144.4,16.1162]
[1723076112544,38.1156,144.47,144.38,6.1769]
[1723076112754,7.10071602,144.44,144.38,6.1769]
[1723076113139,6.9237,144.43,144.38,6.1769]
[1723076113340,7.10056717,144.45,144.38,6.1769]
[1723076113639,6.9238,144.43,144.38,6.1769]
[1723076114065,0.17,144.44,144.38,6.1769]
[1723076114261,45.17,144.44,144.38,6.1769]
[1723076114467,0.17,144.44,144.38,6.1769]
[1723076114635,7.10056717,144.45,144.38,6.1769]
[1723076114840,7.10056717,144.45,144.38,7.56201866]
[1723076115064,40.7602,144.55,144.38,43.83201866]
[1723076115239,6.9204,144.5,144.38,43.83201866]
[1723076115438,7.0935051,144.51,144.38,43.83201866]
[1723076115665,40.7602,144.55,144.38,43.83201866]
[1723076115864,7.1023524,144.51,144.39,0.17]
[1723076116048,17.2971,144.54,144.39,0.17]
[1723076116249,253.6,144.58,144.41,42.6353]
[1723076116456,7.09953843,144.52,144.43,15.0502]
[1723076116664,389.1,144.59,144.45,6.451]
[1723076116969,20.81,144.58,144.46,15.0502]
[1723076117139,7.10269211,144.59,144.46,15.0502]
[1723076117543,7.10269211,144.59,144.46,16.05337663]
[1723076118068,40.81,144.58,144.46,16.05337663]
[1723076118363,17.2939,144.56,144.46,15.0502]
[1723076118567,20.0,144.58,144.46,15.0502]
[1723076118748,7.10269211,144.59,144.49,15.9488]
[1723076118951,7.10269211,144.59,144.51,6.098]
[1723076119538,27.91269211,144.59,144.51,6.098]
[1723076119760,6.9176,144.56,144.51,6.098]
[1723076120075,7.10269211,144.59,144.51,6.098]
[1723076120439,14.01889211,144.59,144.51,6.098]
[1723076120768,7.10269211,144.59,144.51,6.098]
[1723076120949,6.9176,144.56,144.51,6.098]
[1723076121475,6.9169,144.58,144.51,6.098]
[1723076121678,7.10269211,144.59,144.51,6.098]
[1723076123071,7.10269211,144.59,144.52,0.94590288]
[1723076123268,7.10269211,144.59,144.53,16.5866]
[1723076123471,0.4257755,144.69,144.54,0.94577199]
[1723076123679,0.4257755,144.69,144.55,6.5168]
[1723076123863,7.3370755,144.69,144.56,0.94564114]
[1723076124059,7.3370755,144.69,144.57,0.17]
[1723076124268,7.3370755,144.69,144.57,1.12293451]
[1723076124578,6.9119,144.68,144.57,1.12293451]
[1723076124981,6.9119,144.68,144.58,1.38275621]
[1723076125185,6.9119,144.68,144.59,0.17]
[1723076125488,0.4257755,144.69,144.58,0.17]
[1723076125778,0.4257755,144.69,144.57,0.17]
[1723076125980,6.9123,144.67,144.57,0.17]
[1723076126278,6.9129,144.66,144.57,0.17]
[1723076126470,0.4257755,144.69,144.56,1.1100966]
[1723076126779,6.9133,144.65,144.55,6.1768]
[1723076127082,6.9118,144.68,144.56,1.38305738]
[1723076127580,6.9124,144.67,144.57,0.17]
[1723076127787,7.3371755,144.69,144.57,1.55278723]
[1723076128282,0.4257755,144.69,144.55,6.1768]
[1723076128455,6.9142,144.63,144.55,6.1768]
[1723076128658,0.4257755,144.69,144.55,6.1768]
[1723076128863,0.4257755,144.69,144.56,16.6555]
[1723076129060,0.4257755,144.69,144.57,0.48394979]
[1723076129374,0.4257755,144.69,144.59,6.5945]
[1723076129766,0.4257755,144.69,144.6,0.17]
[1723076130388,0.4257755,144.69,144.6,0.34]
[1723076130598,0.4257755,144.69,144.61,17.84530256]
[1723076130877,7.11207651,144.76,144.63,6.5012]
[1723076131097,7.11207651,144.76,144.65,16.4655]
[1723076131257,14.02017651,144.76,144.66,1.38176494]
[1723076131457,6.9081,144.76,144.66,1.55176494]
[1723076131982,6.9075,144.77,144.66,1.55176494]
[1723076132171,17.2651,144.81,144.66,46.55176494]
[1723076132500,6.9069,144.79,144.67,6.7449]
[1723076132784,6.9072,144.78,144.68,0.17]
[1723076133091,7.11454407,144.82,144.69,15.1642]
[1723076133292,7.11454407,144.82,144.71,6.5749]
[1723076133456,0.8240588,144.83,144.73,21.7391]
[1723076133660,0.8240588,144.83,144.74,1.49974216]
[1723076133967,0.8240588,144.83,144.74,46.66974216]
[1723076134176,13.10940355,144.89,144.77,20.0]
[1723076134376,6.0,144.89,144.78,46.49937477]
[1723076134689,6.0,144.89,144.78,46.66937477]
[1723076135985,6.0,144.89,144.79,20.0]
[1723076136191,6.0,144.89,144.81,21.3833]
[1723076136487,6.0,144.89,144.82,1.66900758]
[1723076136693,6.0,144.89,144.83,1.33068795]
[1723076136890,6.0,144.89,144.84,0.17]
[1723076137094,6.0,144.89,144.84,0.34]
[1723076137270,6.0,144.89,144.84,0.17]
[1723076137470,6.0,144.89,144.83,0.34]
[1723076137907,6.0,144.89,144.81,21.3833]
[1723076138095,6.0,144.89,144.82,0.63145019]
[1723076138313,6.0,144.89,144.81,21.3833]
[1723076138782,6.0,144.89,144.82,1.37872147]
[1723076138988,12.9017,144.89,144.81,21.3833]
[1723076139174,6.9024,144.88,144.81,21.3833]
[1723076139675,6.0,144.89,144.81,21.3833]
[1723076140282,6.0,144.89,144.82,0.17]
[1723076140600,6.0,144.89,144.82,45.34]
[1723076140776,6.0,144.89,144.83,0.81811772]
[1723076140970,6.0,144.89,144.84,0.34]
[1723076141197,7.93478707,144.98,144.84,0.34]
[1723076141498,7.93478707,144.98,144.86,26.454]
[1723076141671,0.8240588,144.98,144.87,21.61301227]
[1723076141871,0.8240588,144.98,144.88,45.0]
[1723076142177,0.8240588,144.98,144.89,1.61283654]
[1723076142390,0.8240588,144.98,144.89,0.17]
[1723076142706,0.8240588,144.98,144.89,1.44266083]
[1723076142877,0.8240588,144.98,144.89,46.44266083]
[1723076143077,0.8240588,144.98,144.89,1.44266083]
[1723076144978,7.7215588,144.98,144.87,20.0]
[1723076145299,0.8240588,144.98,144.87,20.0]
[1723076145801,0.8240588,144.98,144.87,21.37981752]
[1723076146314,0.8240588,144.98,144.86,6.454]
[1723076147296,0.8240588,144.98,144.86,26.454]
[1723076147502,0.8240588,144.98,144.87,15.4529]
[1723076147702,0.8240588,144.98,144.88,45.34]
[1723076148379,0.8240588,144.98,144.89,6.2963]
[1723076148581,0.8240588,144.98,144.9,0.17]
[1723076148785,0.8240588,144.98,144.9,45.34]
[1723076149401,0.8240588,144.98,144.9,0.34]
[1723076149612,0.8240588,144.98,144.9,1.71784421]
[1723076149909,0.8240588,144.98,144.91,44.3]
[1723076150126,16.1607,145.1,144.92,79.12625405]
[1723076150410,6.8936,145.07,144.93,1.37774181]
[1723076150613,7.10587808,145.08,144.94,0.34]
[1723076150781,7.10587808,145.08,144.92,78.78758451]
[1723076150981,6.8946,145.04,144.93,1.54888936]
[1723076151180,6.8951,145.03,144.93,1.54888936]
[1723076151380,6.8978,144.98,144.92,12.4086]
[1723076151605,17.2379,145.03,144.92,12.4086]
[1723076151903,45.34,145.02,144.92,12.4086]
[1723076152106,6.8961,145.01,144.92,12.4086]
[1723076152282,0.17,145.02,144.92,12.4086]
[1723076152783,0.17,145.03,144.92,12.4086]
[1723076152987,6.8962,145.01,144.92,12.4086]
[1723076153313,45.17,145.04,144.92,12.4086]
[1723076153603,7.10587808,145.08,144.92,12.4086]
[1723076153604,6.8942,145.05,144.93,0.60315173]
[1723076153782,396.20587808,145.08,144.94,0.17]
[1723076153983,389.1,145.08,144.95,0.43309196]
[1723076154288,6.8938,145.06,144.96,0.60306208]
[1723076154491,6.8938,145.06,144.97,1.23763107]
[1723076154807,6.8932,145.07,144.97,1.23763107]
[1723076156010,6.8937,145.06,144.97,1.23763107]
[1723076156209,6.8932,145.07,144.97,1.23763107]
[1723076156507,389.27,145.08,144.97,1.23763107]
[1723076156687,20.17,145.07,144.92,12.4086]
[1723076156882,6.8942,145.05,144.92,32.4086]
[1723076157081,65.17,145.07,144.93,20.0]
[1723076157408,7.0633,145.07,144.93,20.0]
[1723076157792,389.1,145.08,144.95,44.3]
[1723076157994,0.8240588,145.12,144.99,44.3]
[1723076158180,0.8240588,145.12,145.01,15.3082]
[1723076158383,0.8240588,145.12,145.03,44.3]
[1723076158611,0.8240588,145.12,145.05,6.1102]
[1723076158791,0.8240588,145.12,145.06,46.06703716]
[1723076158990,7.12617686,145.21,145.07,11.2428]
[1723076159208,20.81,145.23,145.08,46.06693693]
[1723076159514,20.81,145.21,145.07,11.2428]
[1723076159694,17.2192,145.19,145.05,6.1102]
[1723076159898,6.8901,145.14,145.05,6.1102]
[1723076160201,38.033,145.16,145.05,6.1102]
[1723076160416,83.0365,145.13,145.05,6.1102]
[1723076160601,6.8923,145.09,145.02,11.2428]
[1723076160797,45.17,145.08,144.97,58.4417]
[1723076161087,20.81,145.1,144.97,58.4417]
[1723076161088,7.061,145.12,144.97,58.4417]
[1723076161285,45.17,145.11,144.98,1.30914609]
[1723076161485,6.8922,145.09,144.99,1.31256108]
[1723076161710,7.0618,145.1,144.99,1.31256108]
[1723076161894,7.0618,145.1,144.97,58.4417]
[1723076161895,45.17,145.09,144.97,58.4417]
[1723076162098,6.8939,145.06,144.97,22.4817]
[1723076162414,6.8907,145.13,145.0,35.96]
[1723076162601,6.6427,145.17,145.03,35.96]
[1723076162808,6.8889,145.16,145.03,37.33814867]
[1723076162996,6.8883,145.18,145.06,35.96]
[1723076163318,6.8913,145.12,145.04,16.2913]
[1723076163507,39.7197,145.2,145.05,1.37783453]
[1723076163816,6.8899,145.14,145.04,16.2913]
[1723076164005,38.0315,145.17,145.04,16.2913]
[1723076164197,17.2215,145.17,145.04,16.2913]
[1723076164513,6.8875,145.19,145.05,1.21098605]
[1723076164714,6.8911,145.2,145.07,6.3158]